[Event "Titled Tuesday Blitz July 05 Late 2022"]
[White "Zhou, Qiyu"]
[Black "Kohler, Aran"]
[WhiteFideId "505161"]
[BlackFideId "1002856"]
[WhiteElo "1925"]
[BlackElo "2285"]
[Result "0-1"]
[Round "09"]
[TimeControl "180+1"]
[Date "2022.07.06"]
[WhiteClock "0:00:03"]
[BlackClock "0:00:12"]

1. e4 {[%clk 0:03:00]}  g6 {[%clk 0:02:57]} 2. d4 {[%clk 0:03:00]}  Bg7 {[%clk 0:02:57]} 3. Nc3 {[%clk 0:03:00]}  d6 {[%clk 0:02:58]} 4. Be3 {[%clk 0:03:01]}  a6 {[%clk 0:02:58]} 5. f3 {[%clk 0:03:02]}  e6 {[%clk 0:02:43]} 6. Qd2 {[%clk 0:03:02]}  h6 {[%clk 0:02:40]} 7. O-O-O {[%clk 0:03:01]}  Ne7 {[%clk 0:02:39]} 8. g4 {[%clk 0:03:01]}  Nd7 {[%clk 0:02:39]} 9. h4 {[%clk 0:03:02]}  b5 {[%clk 0:02:39]} 10. Kb1 {[%clk 0:03:02]}  Bb7 {[%clk 0:02:38]} 11. Bg2 {[%clk 0:02:59]}  b4 {[%clk 0:02:22]} 12. Nce2 {[%clk 0:02:59]}  a5 {[%clk 0:02:22]} 13. Nc1 {[%clk 0:02:59]}  e5 {[%clk 0:02:12]} 14. Nge2 {[%clk 0:02:58]}  Qc8 {[%clk 0:02:06]} 15. f4 {[%clk 0:02:57]}  exf4 {[%clk 0:02:01]} 16. Nxf4 {[%clk 0:02:58]}  Nf6 {[%clk 0:01:54]} 17. g5 {[%clk 0:02:39]}  Nxe4 {[%clk 0:01:50]} 18. Bxe4 {[%clk 0:02:34]}  Bxe4 {[%clk 0:01:51]} 19. Rhg1 {[%clk 0:02:29]}  hxg5 {[%clk 0:01:48]} 20. hxg5 {[%clk 0:02:28]}  Qb7 {[%clk 0:01:40]} 21. Rde1 {[%clk 0:02:27]}  d5 {[%clk 0:01:39]} 22. Ncd3 {[%clk 0:02:26]}  O-O-O {[%clk 0:01:23]} 23. Nc5 {[%clk 0:02:25]}  Qc6 {[%clk 0:01:22]} 24. Nfd3 {[%clk 0:02:18]}  Nf5 {[%clk 0:01:19]} 25. Nb3 {[%clk 0:01:48]}  Qb6 {[%clk 0:01:14]} 26. Ndc5 {[%clk 0:01:40]}  Nd6 {[%clk 0:01:12]} 27. Qf2 {[%clk 0:01:27]}  a4 {[%clk 0:01:10]} 28. Nxa4 {[%clk 0:01:21]}  Qa7 {[%clk 0:01:10]} 29. Nac5 {[%clk 0:01:18]}  Rhf8 {[%clk 0:01:01]} 30. Bd2 {[%clk 0:01:08]}  Qb6 {[%clk 0:00:58]} 31. Ref1 {[%clk 0:00:42]}  Bf5 {[%clk 0:00:57]} 32. Bf4 {[%clk 0:00:31]}  Rde8 {[%clk 0:00:50]} 33. Re1 {[%clk 0:00:29]}  Ne4 {[%clk 0:00:48]} 34. Nxe4 {[%clk 0:00:20]}  Bxe4 {[%clk 0:00:47]} 35. Be3 {[%clk 0:00:19]}  f5 {[%clk 0:00:39]} 36. Bf4 {[%clk 0:00:18]}  Rh8 {[%clk 0:00:35]} 37. Qd2 {[%clk 0:00:17]}  Rh4 {[%clk 0:00:31]} 38. Rgf1 {[%clk 0:00:15]}  Reh8 {[%clk 0:00:29]} 39. Nc5 {[%clk 0:00:11]}  Bf8 {[%clk 0:00:25]} 40. Be5 {[%clk 0:00:09]}  R8h7 {[%clk 0:00:25]} 41. Nb3 {[%clk 0:00:08]}  Bd6 {[%clk 0:00:24]} 42. Bxd6 {[%clk 0:00:07]}  cxd6 {[%clk 0:00:24]} 43. Rf2 {[%clk 0:00:04]}  Ra7 {[%clk 0:00:23]} 44. Nc1 {[%clk 0:00:03]}  Rc7 {[%clk 0:00:20]} 45. Qe3 {[%clk 0:00:01]}  Rh8 {[%clk 0:00:14]} 46. Rg1 {[%clk 0:00:01]}  Re8 {[%clk 0:00:14]} 47. Re1 {[%clk 0:00:01]}  Bxc2+ {[%clk 0:00:13]} 48. Rxc2 {[%clk 0:00:02]}  Rxe3 {[%clk 0:00:13]} 49. Rxe3 {[%clk 0:00:03]}  Rxc2 {[%clk 0:00:13]} 50. Kxc2 {[%clk 0:00:04]}  Qc6+ {[%clk 0:00:13]} 51. Kd2 {[%clk 0:00:04]}  Qb5 {[%clk 0:00:13]} 52. Nd3 {[%clk 0:00:03]}  Qc4 {[%clk 0:00:13]} 53. Re6 {[%clk 0:00:02]}  Qxd4 {[%clk 0:00:13]} 54. Rxd6 {[%clk 0:00:02]}  Qg1 {[%clk 0:00:12]} 55. Rxg6 {[%clk 0:00:02]}  Qg2+ {[%clk 0:00:12]} 56. Kc1 {[%clk 0:00:02]}  f4 {[%clk 0:00:11]} 57. Rg8+ {[%clk 0:00:02]}  Kb7 {[%clk 0:00:11]} 58. Rg7+ {[%clk 0:00:02]}  Kb6 {[%clk 0:00:10]} 59. Rg6+ {[%clk 0:00:03]}  Kb5 {[%clk 0:00:10]} 60. Rf6 {[%clk 0:00:03]}  Qf1+ {[%clk 0:00:10]} 61. Kc2 {[%clk 0:00:03]}  f3 {[%clk 0:00:10]} 62. Ne5 {[%clk 0:00:03]}  Qe2+ {[%clk 0:00:11]} 63. Kc1 {[%clk 0:00:03]}  Qxe5 {[%clk 0:00:11]} 64. Rf4 {[%clk 0:00:03]}  Qxg5 {[%clk 0:00:12]} 0-1


[Site "https://www.chess.com"]

[Event "Titled Tuesday Blitz July 05 Late 2022"]
[White "Antonova, Nadezhda"]
[Black "Thiel, Thomas"]
[WhiteFideId "14700182"]
[BlackFideId "4615964"]
[WhiteElo "1835"]
[BlackElo "2271"]
[Result "0-1"]
[Round "10"]
[TimeControl "180+1"]
[Date "2022.07.06"]
[WhiteClock "0:00:02"]
[BlackClock "0:00:31"]

1. Nf3 {[%clk 0:02:59]}  Nf6 {[%clk 0:02:58]} 2. b3 {[%clk 0:02:59]}  g6 {[%clk 0:02:57]} 3. Bb2 {[%clk 0:02:59]}  Bg7 {[%clk 0:02:56]} 4. g3 {[%clk 0:03:00]}  O-O {[%clk 0:02:56]} 5. Bg2 {[%clk 0:03:00]}  d6 {[%clk 0:02:55]} 6. d4 {[%clk 0:03:01]}  Nbd7 {[%clk 0:02:53]} 7. O-O {[%clk 0:03:01]}  Re8 {[%clk 0:02:52]} 8. Re1 {[%clk 0:03:00]}  e5 {[%clk 0:02:52]} 9. dxe5 {[%clk 0:02:57]}  Ng4 {[%clk 0:02:52]} 10. Qd2 {[%clk 0:02:51]}  a5 {[%clk 0:02:48]} 11. c4 {[%clk 0:02:49]}  Ngxe5 {[%clk 0:02:48]} 12. Nc3 {[%clk 0:02:47]}  a4 {[%clk 0:02:42]} 13. Nxa4 {[%clk 0:02:46]}  Nxc4 {[%clk 0:02:41]} 14. bxc4 {[%clk 0:02:43]}  Rxa4 {[%clk 0:02:40]} 15. Bxg7 {[%clk 0:02:44]}  Kxg7 {[%clk 0:02:40]} 16. Qc2 {[%clk 0:02:34]}  Nc5 {[%clk 0:02:33]} 17. e4 {[%clk 0:02:27]}  Be6 {[%clk 0:02:30]} 18. e5 {[%clk 0:02:03]}  Rxc4 {[%clk 0:02:20]} 19. Qb2 {[%clk 0:01:59]}  Nd3 {[%clk 0:02:19]} 20. Qxb7 {[%clk 0:01:58]}  Nxe1 {[%clk 0:02:17]} 21. Rxe1 {[%clk 0:01:57]}  d5 {[%clk 0:02:11]} 22. Nd2 {[%clk 0:01:46]}  Rc2 {[%clk 0:02:06]} 23. Nb3 {[%clk 0:01:38]}  c5 {[%clk 0:01:58]} 24. a4 {[%clk 0:01:35]}  Re7 {[%clk 0:01:52]} 25. Qb5 {[%clk 0:01:33]}  Qc7 {[%clk 0:01:51]} 26. Qd3 {[%clk 0:01:09]}  Ra2 {[%clk 0:01:25]} 27. Qf3 {[%clk 0:00:58]}  Rxa4 {[%clk 0:01:20]} 28. Qf6+ {[%clk 0:00:56]}  Kg8 {[%clk 0:01:18]} 29. h4 {[%clk 0:00:50]}  Re8 {[%clk 0:01:15]} 30. h5 {[%clk 0:00:50]}  Qe7 {[%clk 0:01:06]} 31. Qxe7 {[%clk 0:00:46]}  Rxe7 {[%clk 0:01:07]} 32. Nxc5 {[%clk 0:00:46]}  Rc4 {[%clk 0:01:04]} 33. Nd3 {[%clk 0:00:43]}  d4 {[%clk 0:01:03]} 34. h6 {[%clk 0:00:36]}  Re8 {[%clk 0:01:00]} 35. Nf4 {[%clk 0:00:31]}  Rc3 {[%clk 0:00:51]} 36. Rd1 {[%clk 0:00:28]}  Rd8 {[%clk 0:00:51]} 37. Rd2 {[%clk 0:00:12]}  d3 {[%clk 0:00:50]} 38. Be4 {[%clk 0:00:11]}  Rc2 {[%clk 0:00:50]} 39. Rxd3 {[%clk 0:00:11]}  Rxd3 {[%clk 0:00:47]} 40. Bxd3 {[%clk 0:00:10]}  Rc5 {[%clk 0:00:47]} 41. Nxe6 {[%clk 0:00:09]}  fxe6 {[%clk 0:00:47]} 42. f4 {[%clk 0:00:08]}  Rc3 {[%clk 0:00:44]} 43. Be4 {[%clk 0:00:03]}  Rxg3+ {[%clk 0:00:42]} 44. Kf2 {[%clk 0:00:03]}  Rh3 {[%clk 0:00:41]} 45. Bc6 {[%clk 0:00:02]}  Rxh6 {[%clk 0:00:39]} 46. Kg3 {[%clk 0:00:02]}  Rh5 {[%clk 0:00:37]} 47. Bd7 {[%clk 0:00:01]}  Kf7 {[%clk 0:00:36]} 48. Bc8 {[%clk 0:00:02]}  Ke7 {[%clk 0:00:36]} 49. Bb7 {[%clk 0:00:02]}  g5 {[%clk 0:00:36]} 50. Bf3 {[%clk 0:00:02]}  Rh4 {[%clk 0:00:34]} 51. fxg5 {[%clk 0:00:02]}  Ra4 {[%clk 0:00:31]} 0-1


[Site "https://www.chess.com"]

[Event "Titled Tuesday Blitz July 05 Late 2022"]
[White "Bjelobrk, Igor"]
[Black "Estrada Nieto, Julian"]
[WhiteFideId "4300726"]
[BlackFideId "5101018"]
[WhiteElo "2335"]
[BlackElo "2252"]
[Result "1-0"]
[Round "10"]
[TimeControl "180+1"]
[Date "2022.07.05"]
[WhiteClock "0:00:06"]
[BlackClock "0:00:04"]

1. Nf3 {[%clk 0:01:44]}  d5 {[%clk 0:02:56]} 2. c4 {[%clk 0:01:43]}  dxc4 {[%clk 0:02:44]} 3. e3 {[%clk 0:01:40]}  Nf6 {[%clk 0:02:38]} 4. Bxc4 {[%clk 0:01:39]}  e6 {[%clk 0:02:38]} 5. O-O {[%clk 0:01:35]}  c5 {[%clk 0:02:38]} 6. b3 {[%clk 0:01:32]}  Nc6 {[%clk 0:02:36]} 7. Bb2 {[%clk 0:01:32]}  a6 {[%clk 0:02:33]} 8. Be2 {[%clk 0:01:31]}  Be7 {[%clk 0:02:30]} 9. d3 {[%clk 0:01:31]}  O-O {[%clk 0:02:29]} 10. a3 {[%clk 0:01:32]}  b6 {[%clk 0:02:23]} 11. Nbd2 {[%clk 0:01:32]}  Bb7 {[%clk 0:02:23]} 12. Qc2 {[%clk 0:01:32]}  Rc8 {[%clk 0:02:21]} 13. Rac1 {[%clk 0:01:32]}  Nd7 {[%clk 0:02:02]} 14. Ne4 {[%clk 0:01:32]}  Nf6 {[%clk 0:01:55]} 15. Ned2 {[%clk 0:01:31]}  Nd7 {[%clk 0:01:54]} 16. Ne4 {[%clk 0:01:31]}  Nf6 {[%clk 0:01:54]} 17. Nfd2 {[%clk 0:01:31]}  Nxe4 {[%clk 0:01:51]} 18. Nxe4 {[%clk 0:01:32]}  f5 {[%clk 0:01:32]} 19. Nd2 {[%clk 0:01:32]}  Bf6 {[%clk 0:01:32]} 20. Rfd1 {[%clk 0:01:21]}  Ne5 {[%clk 0:01:22]} 21. Qb1 {[%clk 0:01:16]}  Qe8 {[%clk 0:01:11]} 22. d4 {[%clk 0:01:11]}  Qg6 {[%clk 0:01:01]} 23. g3 {[%clk 0:01:10]}  cxd4 {[%clk 0:00:53]} 24. Bxd4 {[%clk 0:01:09]}  Ng4 {[%clk 0:00:45]} 25. Rxc8 {[%clk 0:00:33]}  Rxc8 {[%clk 0:00:45]} 26. Bxf6 {[%clk 0:00:32]}  Qxf6 {[%clk 0:00:43]} 27. Bf3 {[%clk 0:00:25]}  Qh6 {[%clk 0:00:28]} 28. h4 {[%clk 0:00:22]}  Bxf3 {[%clk 0:00:23]} 29. Nxf3 {[%clk 0:00:22]}  Nxe3 {[%clk 0:00:23]} 30. Rc1 {[%clk 0:00:16]}  Rd8 {[%clk 0:00:17]} 31. Ng5 {[%clk 0:00:11]}  Nd5 {[%clk 0:00:10]} 32. Rc6 {[%clk 0:00:11]}  Re8 {[%clk 0:00:07]} 33. Qe1 {[%clk 0:00:10]}  Qf6 {[%clk 0:00:07]} 34. Rxe6 {[%clk 0:00:05]}  Rxe6 {[%clk 0:00:07]} 35. Nxe6 {[%clk 0:00:06]}  Qxe6 {[%clk 0:00:08]} 36. Qxe6+ {[%clk 0:00:05]}  Kf8 {[%clk 0:00:04]} 37. Qxd5 {[%clk 0:00:06]} 1-0


[Site "https://www.chess.com"]

[Event "Titled Tuesday Blitz July 05 Late 2022"]
[White "De Arruda, Leandro Formes"]
[Black "Tsukerman, Julia"]
[WhiteFideId "22722009"]
[BlackFideId "2621649"]
[WhiteElo "1852"]
[BlackElo "2182"]
[Result "1/2-1/2"]
[Round "10"]
[TimeControl "180+1"]
[Date "2022.07.06"]
[WhiteClock "0:00:10"]
[BlackClock "0:00:10"]

1. d4 {[%clk 0:02:59]}  d5 {[%clk 0:02:56]} 2. Nf3 {[%clk 0:02:59]}  Nf6 {[%clk 0:02:55]} 3. e3 {[%clk 0:02:59]}  e6 {[%clk 0:02:54]} 4. Bd3 {[%clk 0:03:00]}  c5 {[%clk 0:02:54]} 5. c3 {[%clk 0:03:00]}  Be7 {[%clk 0:02:54]} 6. Nbd2 {[%clk 0:03:00]}  Nc6 {[%clk 0:02:54]} 7. O-O {[%clk 0:03:01]}  O-O {[%clk 0:02:54]} 8. Ne5 {[%clk 0:03:01]}  Qc7 {[%clk 0:02:53]} 9. f4 {[%clk 0:03:02]}  b6 {[%clk 0:02:52]} 10. Rf3 {[%clk 0:03:01]}  Bb7 {[%clk 0:02:53]} 11. Rh3 {[%clk 0:03:02]}  Nxe5 {[%clk 0:02:49]} 12. Bxh7+ {[%clk 0:02:53]}  Nxh7 {[%clk 0:02:44]} 13. Qh5 {[%clk 0:02:52]}  f6 {[%clk 0:02:24]} 14. dxe5 {[%clk 0:02:40]}  fxe5 {[%clk 0:02:01]} 15. Qxh7+ {[%clk 0:02:38]}  Kf7 {[%clk 0:02:01]} 16. Rg3 {[%clk 0:02:30]}  Bf6 {[%clk 0:01:58]} 17. fxe5 {[%clk 0:02:16]}  Qxe5 {[%clk 0:01:56]} 18. Qg6+ {[%clk 0:01:54]}  Ke7 {[%clk 0:01:50]} 19. Nb3 {[%clk 0:01:26]}  Qf5 {[%clk 0:01:31]} 20. Qxf5 {[%clk 0:01:06]}  exf5 {[%clk 0:01:29]} 21. Bd2 {[%clk 0:01:07]}  Be5 {[%clk 0:01:26]} 22. Rg6 {[%clk 0:00:59]}  Kf7 {[%clk 0:01:06]} 23. Rg5 {[%clk 0:00:54]}  g6 {[%clk 0:00:58]} 24. Rf1 {[%clk 0:00:46]}  Kg7 {[%clk 0:00:46]} 25. h4 {[%clk 0:00:36]}  Bf6 {[%clk 0:00:43]} 26. Rg3 {[%clk 0:00:36]}  Bxh4 {[%clk 0:00:43]} 27. Rh3 {[%clk 0:00:34]}  Bf6 {[%clk 0:00:41]} 28. Rg3 {[%clk 0:00:33]}  Be5 {[%clk 0:00:40]} 29. Rh3 {[%clk 0:00:32]}  Rad8 {[%clk 0:00:37]} 30. Be1 {[%clk 0:00:30]}  Ba6 {[%clk 0:00:29]} 31. Rff3 {[%clk 0:00:27]}  Be2 {[%clk 0:00:26]} 32. Rf2 {[%clk 0:00:27]}  Bg4 {[%clk 0:00:26]} 33. Rh1 {[%clk 0:00:25]}  Bg3 {[%clk 0:00:17]} 34. Rf1 {[%clk 0:00:26]}  Be5 {[%clk 0:00:17]} 35. Nd2 {[%clk 0:00:20]}  Rh8 {[%clk 0:00:17]} 36. Rxh8 {[%clk 0:00:20]}  Rxh8 {[%clk 0:00:17]} 37. Nf3 {[%clk 0:00:20]}  Bxf3 {[%clk 0:00:16]} 38. Rxf3 {[%clk 0:00:19]}  Rd8 {[%clk 0:00:16]} 39. Kf2 {[%clk 0:00:19]}  d4 {[%clk 0:00:16]} 40. exd4 {[%clk 0:00:19]}  cxd4 {[%clk 0:00:17]} 41. Rd3 {[%clk 0:00:18]}  Bf6 {[%clk 0:00:17]} 42. cxd4 {[%clk 0:00:18]}  Rxd4 {[%clk 0:00:17]} 43. Rb3 {[%clk 0:00:15]}  Rd1 {[%clk 0:00:15]} 44. Ke2 {[%clk 0:00:15]}  Rd6 {[%clk 0:00:15]} 45. g3 {[%clk 0:00:15]}  Re6+ {[%clk 0:00:15]} 46. Kf1 {[%clk 0:00:13]}  Kf7 {[%clk 0:00:15]} 47. Ra3 {[%clk 0:00:13]}  Re7 {[%clk 0:00:15]} 48. Rb3 {[%clk 0:00:13]}  Rd7 {[%clk 0:00:15]} 49. Ke2 {[%clk 0:00:12]}  Be5 {[%clk 0:00:15]} 50. Kf3 {[%clk 0:00:11]}  Ke6 {[%clk 0:00:15]} 51. Bb4 {[%clk 0:00:11]}  Rd5 {[%clk 0:00:15]} 52. a4 {[%clk 0:00:10]}  Bd6 {[%clk 0:00:14]} 53. Bc3 {[%clk 0:00:10]}  Be5 {[%clk 0:00:13]} 54. Bd2 {[%clk 0:00:09]}  Kf6 {[%clk 0:00:13]} 55. Be3 {[%clk 0:00:09]}  Rd7 {[%clk 0:00:10]} 56. a5 {[%clk 0:00:08]}  bxa5 {[%clk 0:00:10]} 57. Rb5 {[%clk 0:00:08]}  a4 {[%clk 0:00:09]} 58. Ra5 {[%clk 0:00:08]}  Bxb2 {[%clk 0:00:09]} 59. Rxa4 {[%clk 0:00:08]}  Be5 {[%clk 0:00:07]} 60. Rxa7 {[%clk 0:00:07]}  Rxa7 {[%clk 0:00:08]} 61. Bxa7 {[%clk 0:00:08]}  g5 {[%clk 0:00:08]} 62. Be3 {[%clk 0:00:08]}  g4+ {[%clk 0:00:08]} 63. Kg2 {[%clk 0:00:08]}  Ke6 {[%clk 0:00:08]} 64. Bg5 {[%clk 0:00:08]}  Kd5 {[%clk 0:00:08]} 65. Kf2 {[%clk 0:00:08]}  Ke4 {[%clk 0:00:08]} 66. Bh6 {[%clk 0:00:08]}  Bd4+ {[%clk 0:00:09]} 67. Kg2 {[%clk 0:00:07]}  Be3 {[%clk 0:00:09]} 68. Bg7 {[%clk 0:00:07]}  f4 {[%clk 0:00:09]} 69. gxf4 {[%clk 0:00:08]}  Bxf4 {[%clk 0:00:09]} 70. Bc3 {[%clk 0:00:08]}  Kd3 {[%clk 0:00:08]} 71. Be1 {[%clk 0:00:08]}  Ke2 {[%clk 0:00:08]} 72. Bh4 {[%clk 0:00:09]}  Kd3 {[%clk 0:00:09]} 73. Be1 {[%clk 0:00:09]}  Ke4 {[%clk 0:00:09]} 74. Bh4 {[%clk 0:00:09]}  Kf5 {[%clk 0:00:10]} 75. Be1 {[%clk 0:00:10]}  Bg5 {[%clk 0:00:09]} 76. Bg3 {[%clk 0:00:10]}  Ke4 {[%clk 0:00:09]} 77. Be1 {[%clk 0:00:10]}  Ke3 {[%clk 0:00:09]} 78. Kg3 {[%clk 0:00:09]}  Ke2 {[%clk 0:00:10]} 79. Kxg4 {[%clk 0:00:10]} 1/2-1/2


[Site "https://www.chess.com"]

[Event "Titled Tuesday Blitz July 05 Late 2022"]
[White "Dilanyan, Grigor"]
[Black "Janaszak, Dawid"]
[WhiteFideId "13303570"]
[BlackFideId "1119206"]
[WhiteElo "2279"]
[BlackElo "2199"]
[Result "0-1"]
[Round "10"]
[TimeControl "180+1"]
[Date "2022.07.05"]
[WhiteClock "0:00:18"]
[BlackClock "0:00:16"]

1. d4 {[%clk 0:03:00]}  Nf6 {[%clk 0:02:59]} 2. Nf3 {[%clk 0:03:00]}  g6 {[%clk 0:02:59]} 3. Bg5 {[%clk 0:03:00]}  Bg7 {[%clk 0:02:58]} 4. Nbd2 {[%clk 0:03:00]}  d6 {[%clk 0:02:54]} 5. c3 {[%clk 0:02:59]}  O-O {[%clk 0:02:49]} 6. e4 {[%clk 0:02:59]}  h6 {[%clk 0:02:43]} 7. Bh4 {[%clk 0:02:59]}  c5 {[%clk 0:02:42]} 8. dxc5 {[%clk 0:02:58]}  dxc5 {[%clk 0:02:40]} 9. Bc4 {[%clk 0:02:59]}  Nh5 {[%clk 0:02:34]} 10. Bg3 {[%clk 0:02:41]}  Nc6 {[%clk 0:02:32]} 11. Ke2 {[%clk 0:02:08]}  e6 {[%clk 0:02:19]} 12. Qc2 {[%clk 0:02:04]}  Na5 {[%clk 0:02:10]} 13. Rad1 {[%clk 0:02:02]}  Qf6 {[%clk 0:01:55]} 14. Be5 {[%clk 0:01:56]}  Qe7 {[%clk 0:01:46]} 15. Bxg7 {[%clk 0:01:53]}  Kxg7 {[%clk 0:01:47]} 16. Kf1 {[%clk 0:01:49]}  b6 {[%clk 0:01:41]} 17. Be2 {[%clk 0:01:33]}  Nf4 {[%clk 0:01:39]} 18. g3 {[%clk 0:01:33]}  Nxe2 {[%clk 0:01:38]} 19. Kxe2 {[%clk 0:01:34]}  Ba6+ {[%clk 0:01:37]} 20. c4 {[%clk 0:01:32]}  Rad8 {[%clk 0:01:30]} 21. Kf1 {[%clk 0:01:32]}  Nxc4 {[%clk 0:01:20]} 22. Kg2 {[%clk 0:01:30]}  Nxd2 {[%clk 0:01:19]} 23. Rxd2 {[%clk 0:01:27]}  Rxd2 {[%clk 0:01:16]} 24. Qxd2 {[%clk 0:01:28]}  Rd8 {[%clk 0:01:17]} 25. Qc3+ {[%clk 0:01:28]}  Qf6 {[%clk 0:01:14]} 26. Ne5 {[%clk 0:01:28]}  Rd4 {[%clk 0:00:55]} 27. Nc6 {[%clk 0:01:16]}  Rxe4 {[%clk 0:00:50]} 28. Qxf6+ {[%clk 0:01:16]}  Kxf6 {[%clk 0:00:50]} 29. Nxa7 {[%clk 0:00:49]}  Bb7 {[%clk 0:00:50]} 30. f3 {[%clk 0:00:44]}  Re2+ {[%clk 0:00:49]} 31. Kh3 {[%clk 0:00:44]}  Bxf3 {[%clk 0:00:48]} 32. Rf1 {[%clk 0:00:44]}  Re3 {[%clk 0:00:43]} 33. Nc8 {[%clk 0:00:44]}  h5 {[%clk 0:00:36]} 34. Nxb6 {[%clk 0:00:42]}  Kg5 {[%clk 0:00:33]} 35. Nc4 {[%clk 0:00:39]}  Bg4+ {[%clk 0:00:33]} 36. Kg2 {[%clk 0:00:39]}  Re2+ {[%clk 0:00:34]} 37. Rf2 {[%clk 0:00:40]}  Bh3+ {[%clk 0:00:30]} 38. Kf3 {[%clk 0:00:40]}  Bg4+ {[%clk 0:00:23]} 39. Kg2 {[%clk 0:00:40]}  Bh3+ {[%clk 0:00:23]} 40. Kf3 {[%clk 0:00:40]}  Re1 {[%clk 0:00:22]} 41. Nd2 {[%clk 0:00:33]}  f5 {[%clk 0:00:21]} 42. Nc4 {[%clk 0:00:21]}  e5 {[%clk 0:00:20]} 43. Rd2 {[%clk 0:00:20]}  e4+ {[%clk 0:00:20]} 44. Kf2 {[%clk 0:00:21]}  Rf1+ {[%clk 0:00:18]} 45. Ke2 {[%clk 0:00:21]}  Ra1 {[%clk 0:00:18]} 46. a3 {[%clk 0:00:20]}  Bf1+ {[%clk 0:00:17]} 47. Ke3 {[%clk 0:00:21]}  Bxc4 {[%clk 0:00:18]} 48. Rc2 {[%clk 0:00:21]}  Bd3 {[%clk 0:00:17]} 49. Rxc5 {[%clk 0:00:21]}  Re1+ {[%clk 0:00:18]} 50. Kd4 {[%clk 0:00:21]}  Rh1 {[%clk 0:00:17]} 51. h4+ {[%clk 0:00:21]}  Kg4 {[%clk 0:00:17]} 52. Rc6 {[%clk 0:00:19]}  Kxg3 {[%clk 0:00:17]} 53. Rxg6+ {[%clk 0:00:20]}  Kxh4 {[%clk 0:00:17]} 54. Ke5 {[%clk 0:00:19]}  e3 {[%clk 0:00:16]} 55. Kf4 {[%clk 0:00:18]}  e2 {[%clk 0:00:16]} 0-1


[Site "https://www.chess.com"]

[Event "Titled Tuesday Blitz July 05 Late 2022"]
[White "Domingo Nunez, Alejandro"]
[Black "Riehle, Marco"]
[WhiteFideId "22245561"]
[BlackFideId "12904392"]
[WhiteElo "2222"]
[BlackElo "2462"]
[Result "1/2-1/2"]
[Round "10"]
[TimeControl "180+1"]
[Date "2022.07.05"]
[WhiteClock "0:00:26"]
[BlackClock "0:01:02"]

1. Nf3 {[%clk 0:03:00]}  c5 {[%clk 0:02:57]} 2. g3 {[%clk 0:02:59]}  Nc6 {[%clk 0:02:56]} 3. d4 {[%clk 0:02:59]}  cxd4 {[%clk 0:02:54]} 4. Nxd4 {[%clk 0:03:00]}  e5 {[%clk 0:02:55]} 5. Nxc6 {[%clk 0:02:59]}  dxc6 {[%clk 0:02:54]} 6. Qxd8+ {[%clk 0:02:58]}  Kxd8 {[%clk 0:02:55]} 7. c4 {[%clk 0:02:58]}  Kc7 {[%clk 0:02:52]} 8. Nc3 {[%clk 0:02:57]}  Be6 {[%clk 0:02:49]} 9. b3 {[%clk 0:02:57]}  Bb4 {[%clk 0:02:49]} 10. Bb2 {[%clk 0:02:57]}  Rd8 {[%clk 0:02:46]} 11. a3 {[%clk 0:02:56]}  Be7 {[%clk 0:02:43]} 12. Bg2 {[%clk 0:02:46]}  Nh6 {[%clk 0:02:38]} 13. Rd1 {[%clk 0:02:26]}  Nf5 {[%clk 0:02:33]} 14. e3 {[%clk 0:02:21]}  Rxd1+ {[%clk 0:02:25]} 15. Kxd1 {[%clk 0:02:22]}  Rd8+ {[%clk 0:02:24]} 16. Kc2 {[%clk 0:02:22]}  f6 {[%clk 0:02:19]} 17. Rd1 {[%clk 0:02:11]}  Rxd1 {[%clk 0:02:18]} 18. Nxd1 {[%clk 0:02:11]}  h5 {[%clk 0:02:18]} 19. Nc3 {[%clk 0:02:06]}  h4 {[%clk 0:02:15]} 20. Ne4 {[%clk 0:01:54]}  g5 {[%clk 0:02:10]} 21. g4 {[%clk 0:01:24]}  Nd6 {[%clk 0:02:04]} 22. h3 {[%clk 0:01:08]}  Nxe4 {[%clk 0:01:58]} 23. Bxe4 {[%clk 0:01:09]}  a6 {[%clk 0:01:59]} 24. Kd3 {[%clk 0:01:06]}  b5 {[%clk 0:01:56]} 25. cxb5 {[%clk 0:00:56]}  cxb5 {[%clk 0:01:52]} 26. b4 {[%clk 0:00:56]}  Kb6 {[%clk 0:01:49]} 27. Kc2 {[%clk 0:00:48]}  a5 {[%clk 0:01:46]} 28. Bc3 {[%clk 0:00:47]}  a4 {[%clk 0:01:43]} 29. Bd3 {[%clk 0:00:45]}  Bd5 {[%clk 0:01:41]} 30. e4 {[%clk 0:00:45]}  Be6 {[%clk 0:01:39]} 31. Bd2 {[%clk 0:00:44]}  Kc6 {[%clk 0:01:33]} 32. Be3 {[%clk 0:00:45]}  Bd8 {[%clk 0:01:33]} 33. f3 {[%clk 0:00:45]}  Bb3+ {[%clk 0:01:31]} 34. Kc3 {[%clk 0:00:45]}  Bc7 {[%clk 0:01:30]} 35. Bc2 {[%clk 0:00:42]}  Be6 {[%clk 0:01:29]} 36. Bd3 {[%clk 0:00:41]}  Bd7 {[%clk 0:01:26]} 37. Bc5 {[%clk 0:00:41]}  Bd8 {[%clk 0:01:26]} 38. Be2 {[%clk 0:00:38]}  Be6 {[%clk 0:01:25]} 39. Bd3 {[%clk 0:00:37]}  Bf7 {[%clk 0:01:25]} 40. Bf1 {[%clk 0:00:33]}  Bb3 {[%clk 0:01:24]} 41. Be2 {[%clk 0:00:33]}  Be6 {[%clk 0:01:21]} 42. Bd3 {[%clk 0:00:29]}  Bd7 {[%clk 0:01:17]} 43. Be2 {[%clk 0:00:28]}  Kc7 {[%clk 0:01:15]} 44. Bd3 {[%clk 0:00:28]}  Bc6 {[%clk 0:01:16]} 45. Be2 {[%clk 0:00:28]}  Kb7 {[%clk 0:01:13]} 46. Bd3 {[%clk 0:00:28]}  Ka6 {[%clk 0:01:13]} 47. Bc2 {[%clk 0:00:29]}  Bd7 {[%clk 0:01:14]} 48. Bd3 {[%clk 0:00:29]}  Be6 {[%clk 0:01:15]} 49. Be2 {[%clk 0:00:28]}  Bb3 {[%clk 0:01:15]} 50. Bf8 {[%clk 0:00:27]}  Kb6 {[%clk 0:01:12]} 51. Bc5+ {[%clk 0:00:27]}  Kc6 {[%clk 0:01:12]} 52. Be3 {[%clk 0:00:26]}  Be7 {[%clk 0:01:11]} 53. Ba7 {[%clk 0:00:26]}  Kc7 {[%clk 0:01:08]} 54. Be3 {[%clk 0:00:27]}  Bd6 {[%clk 0:01:08]} 55. Ba7 {[%clk 0:00:27]}  Kb7 {[%clk 0:01:07]} 56. Be3 {[%clk 0:00:27]}  Kc6 {[%clk 0:01:08]} 57. Ba7 {[%clk 0:00:27]}  Kc7 {[%clk 0:01:08]} 58. Be3 {[%clk 0:00:27]}  Be7 {[%clk 0:01:08]} 59. Ba7 {[%clk 0:00:28]}  Kc8 {[%clk 0:01:09]} 60. Be3 {[%clk 0:00:28]}  Bd8 {[%clk 0:01:09]} 61. Bc5 {[%clk 0:00:28]}  Kb7 {[%clk 0:01:08]} 62. Be3 {[%clk 0:00:28]}  Bc7 {[%clk 0:01:07]} 63. Bc5 {[%clk 0:00:28]}  Bb6 {[%clk 0:01:07]} 64. Bxb6 {[%clk 0:00:24]}  Kxb6 {[%clk 0:01:08]} 65. Kb2 {[%clk 0:00:20]}  Kc6 {[%clk 0:01:04]} 66. Kc3 {[%clk 0:00:20]}  Ba2 {[%clk 0:01:03]} 67. Kd2 {[%clk 0:00:20]}  Be6 {[%clk 0:01:02]} 68. Bd3 {[%clk 0:00:20]}  Bb3 {[%clk 0:01:01]} 69. Bc2 {[%clk 0:00:20]}  Ba2 {[%clk 0:01:02]} 70. Bd3 {[%clk 0:00:20]}  Kb6 {[%clk 0:01:02]} 71. Bc2 {[%clk 0:00:21]}  Be6 {[%clk 0:01:01]} 72. Bd3 {[%clk 0:00:21]}  Bd7 {[%clk 0:01:02]} 73. Bc2 {[%clk 0:00:22]}  Kc6 {[%clk 0:01:02]} 74. Bd3 {[%clk 0:00:22]}  Kd6 {[%clk 0:01:02]} 75. Kc3 {[%clk 0:00:23]}  Bc6 {[%clk 0:01:02]} 76. Bc2 {[%clk 0:00:23]}  Kc7 {[%clk 0:01:02]} 77. Bd3 {[%clk 0:00:24]}  Kb6 {[%clk 0:01:03]} 78. Kd2 {[%clk 0:00:24]}  f5 {[%clk 0:01:02]} 79. gxf5 {[%clk 0:00:23]}  Kc7 {[%clk 0:01:01]} 80. Ke3 {[%clk 0:00:23]}  Kd6 {[%clk 0:01:01]} 81. Kd2 {[%clk 0:00:23]}  Ke7 {[%clk 0:01:01]} 82. Be2 {[%clk 0:00:23]}  Kf6 {[%clk 0:01:01]} 83. Ke3 {[%clk 0:00:23]}  Bd7 {[%clk 0:01:01]} 84. Bd3 {[%clk 0:00:23]}  Be8 {[%clk 0:01:01]} 85. Bf1 {[%clk 0:00:24]}  Bd7 {[%clk 0:01:00]} 86. Be2 {[%clk 0:00:25]}  Bc6 {[%clk 0:01:01]} 87. Bf1 {[%clk 0:00:25]}  Bd7 {[%clk 0:01:01]} 88. Bd3 {[%clk 0:00:26]}  Bc6 {[%clk 0:01:02]} 89. Kf2 {[%clk 0:00:26]}  Bd7 {[%clk 0:01:02]} 90. Ke3 {[%clk 0:00:26]} 1/2-1/2


[Site "https://www.chess.com"]